[Event "SixDays Budapest GM-A 10-2024"]
[Site "Budapest"]
[Date "2024.10.03"]
[Round "6.1"]
[White "Panda Sambit"]
[Black "Coenen, Michael"]
[Result "1-0"]
[ECO "D86"]
[WhiteElo "2367"]
[BlackElo "2339"]
[Annotator "TA"]
[PlyCount "97"]
[EventDate "2024.09.24"]
[EventType "tourn"]
[EventCountry "HUN"]
[SourceTitle "playchess.com"]
[Source "ChessBase"]
[SourceQuality "1"]
[TimeControl "5400+30"]

{[%evp 19,97,13,11,21,15,0,22,21,16,0,0,11,44,49,52,0,0,0,0,0,-10,-16,-16,-48,-45,-50,-47,-64,-52,-66,-61,-78,-49,-64,-36,-39,-46,-38,-29,-39,-41,-41,-38,-45,-44,-49,-44,-50,-46,-51,0,0,41,43,37,42,59,59,85,85,116,116,116,122,138,117,244,239,528,509,509,509,468,442,586,585,576,556,710,699]} 1. d4 {[%emt 0:05:04]} Nf6 {[%emt 0:00:06]} 2. c4 {[%emt 0:00:39]} g6 {[%emt 0:00:06]} 3. Nc3 {[%emt 0:01:22]} d5 {[%emt 0:00:29]} 4. cxd5 {[%emt 0:00:41]} Nxd5 {[%emt 0:00:07]} 5. e4 {[%emt 0:00:06]} Nxc3 {[%emt 0:00:06]} 6. bxc3 {[%emt 0:00:04]} Bg7 {[%emt 0:00:06]} 7. Bc4 {[%emt 0:01:08]} c5 {[%emt 0:00:20]} 8. Ne2 {[%emt 0:00:06]} O-O {[%emt 0:03:42]} 9. O-O {[%emt 0:01:14]} Nc6 {[%emt 0:00:34]} 10. Be3 {[%emt 0:00:06]} b6 {[%emt 0:00:51]} 11. Rc1 {[%emt 0:02:25]} Bb7 {[%emt 0:02:10]} 12. Bb5 {[%emt 0:01:44]} e6 {[%emt 0:04:42]} 13. dxc5 {[%emt 0:20:49] The position is equal.} Qc7 {[%emt 0:05:34]} 14. Qd6 {[%emt 0:07:38] Wards off Ne5} Qxd6 {[%emt 0:04:12]} 15. cxd6 {[%emt 0:01:17]} Rfd8 {[%emt 0:00:36]} 16. Rfd1 {[%emt 0:01:29]} Ne5 {[%emt 0:01:21][%cal Oa7a6]} 17. Ng3 {[%emt 0:31:37]} (17. c4 $14) 17... Ng4 $11 {[%emt 0:13:48]} 18. Bf4 {[%emt 0:01:25]} e5 {[%emt 0:00:33]} 19. Bg5 {[%emt 0:00:39]} f6 $1 {[%emt 0:00:07]} 20. f3 {[%emt 0:03:19]} fxg5 {[%emt 0:01:36]} 21. Bc4+ {[%emt 0:01:09]} Kh8 $1 {[%emt 0:00:10]} 22. fxg4 {[%emt 0:00:05]} Rac8 $1 {[%emt 0:05:35]} 23. Bb3 {[%emt 0:11:32]} Bf8 {[%emt 0:03:14][%mdl 1024] Black has compensation.} 24. d7 {[%emt 0:00:03]} Rc7 {[%emt 0:00:33][%cal Of8a3]} (24... Bc5+ 25. Kf1 Ba6+ 26. Ke1) 25. Be6 {[%emt 0:00:15]} Ba6 {[%emt 0:03:18]} (25... Bc6 $6 26. Rd5 $11) 26. c4 {[%emt 0:00:28]} Rc6 {[%emt 0:02:59]} 27. Bd5 {[%emt 0:00:52]} Bc5+ {[%emt 0:01:20]} 28. Kh1 {[%emt 0:00:11]} Rd6 {[%emt 0:00:12]} 29. Ne2 {[%emt 0:01:45][%cal Bg3e2,Be2g1,Bg1f3][%mdl 32]} R6xd7 {[%emt 0:02:21]} 30. Ng1 {[%emt 0:00:07]} h6 {[%emt 0:12:43]} 31. Nf3 {[%emt 0:00:09]} Re7 {[%emt 0:00:05]} 32. Rc3 {[%emt 0:01:43]} Kg7 {[%emt 0:02:15]} 33. h3 {[%emt 0:00:19]} Bc8 {[%emt 0:02:15]} 34. Rcd3 {[%emt 0:00:13]} h5 {[%emt 0:06:05]} ({Black should try} 34... Rf8 $15) 35. gxh5 {[%emt 0:02:08]} ({Don't play} 35. Nxg5 Kf6 (35... hxg4 36. h4 $17) 36. h4 Bxg4 37. Rf1+ Kg7 $15) 35... Rh8 {[%emt 0:12:07]} 36. Nxg5 {[%emt 0:01:37] hxg6 would now be deadly.} Rxh5 {[%emt 0:00:03]} 37. Nf3 {[%emt 0:01:26]} (37. Rg3 {is more complex.} Bf2 38. Rf3 Bg4 39. Ne6+) 37... g5 {[%emt 0:00:28]} 38. Nh2 {[%emt 0:00:13]} Rh4 {[%emt 0:10:23] [#]} 39. g4 $1 {[%emt 0:00:27]} Bd7 {[%emt 0:01:28]} 40. Rf1 {[%emt 0:01:10]} Rh8 {[%emt 0:01:05]} 41. Kg2 {[%emt 0:00:53]} Rc8 {[%emt 0:00:39]} 42. Rdf3 {[%emt 0:00:22] White is more active. Black is weak on the light squares} Be8 {[%emt 0:00:06] Prevents Rf7+. Loses the game.} (42... Be6 $16 {was necessary.} 43. Rd3 (43. Bxe6 Rxe6 44. Rf7+ Kg8 $14) 43... Bb4) 43. Rf8 $18 {[%emt 0:00:50] [#] And now Rg8+ would win.} Rcc7 $2 {[%emt 0:00:50]} (43... Kh7 44. Nf3 Rg7) 44. Rg8+ {[%emt 0:00:09] White is clearly winning.} Kh6 {[%emt 0:00:18]} 45. Rf6+ {[%emt 0:00:21]} Kh7 {[%emt 0:00:01]} 46. Nf3 {[%emt 0:00:51]} ({Don't do} 46. Rxg5 Rg7) 46... Be3 {[%emt 0:01:11]} 47. Nxg5+ {[%emt 0:00:24]} Bxg5 {[%emt 0:00:04]} 48. Rxg5 {[%emt 0:00:02]} Rg7 {[%emt 0:01:01] Prevents Bg8+} 49. Rxe5 {[%emt 0:00:11] Weighted Error Value: White=0.06 (flawless) /Black=0.26 (precise) .  Mistake:       	White=1     	Black=3      Inaccurate:     	White=1     	Black=7      OK:         	White=19    	Black=13     Best:        	White=4     	Black=1      Strong:       	White=1     	Black=3} 1-0

[Event "SixDays Budapest GM-A 10-2024"]
[Site "Budapest"]
[Date "2024.10.03"]
[Round "6.2"]
[White "Manon, Reja Neer"]
[Black "Jablonicky, Martin"]
[Result "1-0"]
[ECO "C45"]
[WhiteElo "2417"]
[BlackElo "2421"]
[Annotator "TA"]
[PlyCount "99"]
[EventDate "2024.09.24"]
[EventType "tourn"]
[EventCountry "HUN"]
[SourceTitle "playchess.com"]
[Source "ChessBase"]
[SourceQuality "1"]
[TimeControl "5400+30"]

{[%evp 20,99,54,57,64,54,103,108,118,111,194,166,268,280,264,281,320,287,451,405,449,487,476,50,47,48,49,43,50,50,51,47,45,48,62,41,69,53,45,43,56,54,150,0,0,0,0,0,0,0,0,0,0,0,0,0,0,0,0,0,8,8,13,12,22,41,149,136,439,434,370,255,1188,1087,29979,29980,29991,29992,29992,29993,29993,29992]} 1. e4 {[%emt 0:00:05]} e5 {[%emt 0:02:27]} 2. Nf3 {[%emt 0:00:22]} Nc6 {[%emt 0:00:04]} 3. d4 {[%emt 0:02:03]} exd4 {[%emt 0:00:04]} 4. Nxd4 {[%emt 0:00:06]} Nf6 {[%emt 0:00:15]} 5. Nxc6 {[%emt 0:00:21]} bxc6 {[%emt 0:00:02]} 6. e5 {[%emt 0:00:16]} Qe7 {[%emt 0:00:02]} 7. Qe2 {[%emt 0:00:18]} Nd5 {[%emt 0:00:07]} 8. c4 {[%emt 0:00:22][%cal Bc2c4,Bc4c5,Bc5b6,Bb6c7][%mdl 32]} Ba6 {[%emt 0:00:03]} 9. b3 {[%emt 0:00:19]} g6 {[%emt 0:03:58]} 10. f4 {[%emt 0:03:21]} Bg7 {[%emt 0:01:22]} 11. Qf2 {[%emt 0:04:29]} Nb6 {[%emt 0:01:02]} (11... Nb4 12. a3 Bxe5 13. fxe5 Qxe5+ 14. Qe2 Nc2+ 15. Kf2 Qxe2+ 16. Bxe2 Nxa1 17. Bb2 $18) 12. Ba3 {[%emt 0:03:48]} Qe6 {[%emt 0:07:55] [#]} (12... d6 $14) 13. c5 $1 $16 {[%emt 0:10:00]} Bxf1 {[%emt 0:03:49] White is better.} 14. cxb6 {[%emt 0:00:15]} Ba6 {[%emt 0:00:05] Black is weak on the dark squares} (14... axb6 $16 15. Rxf1 f6) 15. bxc7 $18 {[%emt 0:00:26]} (15. b7 Bxb7 16. O-O d6 $15) 15... f6 {[%emt 0:02:47]} ({Not} 15... Bxe5 $2 16. fxe5 d5 17. Nc3 $18) (15... d5 $142) 16. Nc3 {[%emt 0:03:22]} d5 {[%emt 0:04:39]} 17. O-O-O {[%emt 0:07:32]} fxe5 {[%emt 0:03:03]} 18. fxe5 {[%emt 0:07:35]} Bf8 {[%emt 0:00:14] [#]} (18... Rf8 $142 19. Bxf8 Bxf8) 19. Bd6 $1 {[%emt 0:05:12][%mdl 512]} Bxd6 {[%emt 0:09:07]} 20. exd6 {[%emt 0:00:05] Threatening mate with Rhe1.} Rf8 {[%emt 0:00:04]} 21. Rhe1 $2 {[%emt 0:06:31]} (21. c8=R+ $18 Bxc8 22. Qc5) 21... Rxf2 $14 {[%emt 0:00:05]} 22. Rxe6+ {[%emt 0:00:06]} Kd7 {[%emt 0:00:02]} 23. Rde1 $40 {[%emt 0:00:09][%mdl 128] Strongly threatening Na4. White attacks. Chess con chili.} Rf1 $1 {[%emt 0:02:30]} 24. Rxf1 {[%emt 0:12:25]} Kxe6 {[%emt 0:00:06][%mdl 4096] Endgame. [#] KRB-KRN} 25. d7 $1 {[%emt 0:00:38]} Kxd7 {[%emt 0:00:04]} 26. Rf7+ {[%emt 0:00:04]} Kd6 {[%emt 0:00:05]} 27. Rxh7 {[%emt 0:00:02] White is more active.} Rc8 {[%emt 0:12:16]} 28. Rg7 {[%emt 0:01:27]} (28. Rh6 $5) 28... Bd3 $1 {[%emt 0:00:45]} 29. Kd2 {[%emt 0:12:39]} Bf5 {[%emt 0:00:06]} 30. Na4 {[%emt 0:09:03][%cal Og2g4]} Ke5 {[%emt 0:19:46]} (30... Rxc7 $14 31. Rxc7 Kxc7) 31. h3 {[%emt 0:02:13]} ({Only move:} 31. Nc5 $16) 31... Kf6 $11 {[%emt 0:00:21]} 32. Rh7 {[%emt 0:01:49] g4 would now be deadly.} g5 $1 {[%emt 0:00:04]} 33. Rh6+ {[%emt 0:00:48]} Bg6 {[%emt 0:00:06][%cal Of6g7]} 34. h4 $1 {[%emt 0:00:48]} gxh4 {[%emt 0:00:31]} 35. Rxh4 {[%emt 0:00:40]} Kg5 {[%emt 0:03:41]} 36. Rb4 {[%emt 0:00:53]} Rxc7 {[%emt 0:00:05]} 37. Nc5 {[%emt 0:00:05] aiming for Ne6+.} Rh7 {[%emt 0:03:11]} 38. Ra4 {[%emt 0:00:57]} Rh2 {[%emt 0:00:26]} 39. Rxa7 {[%emt 0:01:34]} Rxg2+ {[%emt 0:00:49]} 40. Kc3 {[%emt 0:00:30] Black must now prevent a4.} Kf4 {[%emt 0:02:04]} 41. a4 {[%emt 0:00:51]} Rc2+ {[%emt 0:08:51]} 42. Kb4 {[%emt 0:00:28] And now a5 would win.} Ke3 {[%emt 0:01:20]} ({Better is} 42... d4 $14) 43. Re7+ $16 {[%emt 0:06:24]} Be4 $2 {[%emt 0:04:26][%mdl 8192] This move loses the game for Black.} (43... Kd4 $16 {is tougher.} 44. Ne6+ Ke5 45. Nf8+ Kf6 46. Nxg6 Kxg6) 44. a5 $18 {[%emt 0:00:18] Threatens to win with a6.} Kd4 {[%emt 0:00:37]} 45. a6 {[%emt 0:00:21] a7 is the strong threat.} Ra2 $2 {[%emt 0:03:38]} (45... Rxc5 46. a7 Rb5+ 47. Ka4 Bc2) 46. a7 {[%emt 0:00:13]} Bd3 {[%emt 0:00:43]} 47. Na4 {[%emt 0:00:20] White mates.} Bf1 {[%emt 0:01:11]} 48. a8=Q {[%emt 0:00:10]} c5+ {[%emt 0:00:11]} 49. Ka5 {[%emt 0:00:04]} Rxa4+ {[%emt 0:00:03]} 50. bxa4 {[%emt 0:00:06] Weighted Error Value: White=0.26 (precise) /Black=0.40.  Loses game:     	---       	Black=1      Missed win:     	White=1     	---        Mistake:       	White=1     	Black=7      Inaccurate:     	White=1     	Black=2      OK:         	White=19    	Black=8      Best:        	White=4     	Black=6      Strong:       	White=2     	Black=3      Brilliant:      	White=1     	---} 1-0

[Event "SixDays Budapest GM-A 10-2024"]
[Site "Budapest"]
[Date "2024.10.03"]
[Round "6.3"]
[White "Pasztor, Balazs"]
[Black "Berczes, David"]
[Result "1-0"]
[ECO "C64"]
[WhiteElo "2402"]
[BlackElo "2400"]
[Annotator "TA"]
[PlyCount "99"]
[EventDate "2024.09.24"]
[EventType "tourn"]
[EventCountry "HUN"]
[SourceTitle "playchess.com"]
[Source "ChessBase"]
[SourceQuality "1"]
[TimeControl "5400+30"]

{[%evp 9,99,33,31,23,18,15,22,12,19,18,37,26,20,23,35,52,27,27,52,11,31,18,75,0,11,5,26,31,25,27,27,8,14,8,47,44,59,30,67,54,61,68,49,0,0,-31,-31,-29,-11,-13,-12,-15,50,-39,0,3,61,19,7,0,0,0,0,0,0,0,0,0,0,0,0,0,0,0,0,0,0,0,200,189,256,277,276,264,279,292,328,310,301,298,29994,29995]} 1. e4 {[%emt 0:00:04]} e5 {[%emt 0:07:26]} 2. Nf3 {[%emt 0:00:19]} Nc6 {[%emt 0:00:27]} 3. Bb5 {[%emt 0:00:17]} Bc5 {[%emt 0:00:18]} 4. c3 {[%emt 0:00:25]} Nf6 {[%emt 0:00:06]} 5. d4 {[%emt 0:00:36]} exd4 {[%emt 0:00:06]} 6. e5 {[%emt 0:00:19]} Nd5 {[%emt 0:00:08]} 7. cxd4 {[%emt 0:00:46]} Bb4+ {[%emt 0:00:07]} 8. Nbd2 {[%emt 0:00:15] The position is equal.} O-O {[%emt 0:00:11]} 9. O-O {[%emt 0:00:45]} Be7 {[%emt 0:00:19]} 10. Re1 {[%emt 0:15:54]} d6 {[%emt 0:06:45]} 11. a3 {[%emt 0:05:48]} a6 {[%emt 0:06:41]} 12. Bxc6 {[%emt 0:03:17]} bxc6 {[%emt 0:00:00]} 13. Qc2 {[%emt 0:01:18] Prevents Bf5.} Bd7 {[%emt 0:04:07]} 14. h3 {[%emt 0:10:34]} Qc8 {[%emt 0:09:23]} 15. Nc4 {[%emt 0:05:14]} f6 {[%emt 0:07:35] [#]} (15... Bf5 $11 16. Qd1 h6) 16. exd6 {[%emt 0:07:11] White is more active.} (16. Na5 $1 $16) 16... Bxd6 {[%emt 0:01:06]} 17. Bd2 {[%emt 0:02:58]} Rb8 {[%emt 0:04:53]} 18. b4 {[%emt 0:04:59]} Bf5 {[%emt 0:04:16]} 19. Qb3 {[%emt 0:01:11]} Be6 {[%emt 0:03:31]} 20. Qd3 {[%emt 0:02:31]} Bf5 {[%emt 0:03:58]} 21. Qf1 {[%emt 0:00:29]} g5 {[%emt 0:00:27]} 22. Rac1 {[%emt 0:06:11]} Kh8 {[%emt 0:00:26]} 23. h4 {[%emt 0:05:22]} (23. Nxd6 {simplifies} cxd6 24. Qc4 Bd7 25. Nh2) 23... gxh4 {[%emt 0:05:55]} 24. Nxh4 {[%emt 0:00:34] Excellent horsemanship.} Rg8 {[%emt 0:00:36]} 25. Nxd6 {[%emt 0:08:22]} cxd6 {[%emt 0:00:51]} 26. f3 {[%emt 0:00:08] Against Rg4} (26. g3 $14 {feels stronger.}) 26... Bd7 $11 {[%emt 0:01:59]} 27. Qd3 {[%emt 0:02:44]} f5 {[%emt 0:01:29]} 28. Kf2 {[%emt 0:02:01]} Qd8 {[%emt 0:01:26]} 29. Rh1 {[%emt 0:01:27]} (29. Nxf5 Bxf5 30. Qxf5 Qh4+ 31. Kf1 Rbf8 $17 (31... Qxd4 32. Rcd1 $11) (31... Qh1+ 32. Ke2 $17)) 29... Qf6 {[%emt 0:00:39][%cal Oa6a5]} 30. g3 {[%emt 0:02:32][%cal Oh4g2]} Rg7 {[%emt 0:03:10]} (30... a5 $11) 31. Rh3 {[%emt 0:01:39]} ({Better is} 31. Ng2 $1 $14) 31... f4 {[%emt 0:15:04]} (31... a5 $5) 32. g4 {[%emt 0:00:32]} Ne3 {[%emt 0:05:25]} 33. Rch1 {[%emt 0:00:23]} (33. d5 $5 Nxd5 34. Ng2 $16) 33... Kg8 $1 {[%emt 0:02:29]} 34. Ng2 {[%emt 0:02:50][%cal Rh3h7]} (34. Qxa6 $2 Qxd4 35. Bxe3 fxe3+ 36. Kg1 Bxg4 $19) 34... Bf5 {[%emt 0:00:35]} 35. Qc3 {[%emt 0:01:23][%cal Og2f4] aiming for Nxf4! Some like it hot} Bxg4 {[%emt 0:04:18]} 36. fxg4 {[%emt 0:01:40]} Rxg4 {[%emt 0:00:33]} 37. Qb3+ {[%emt 0:01:39]} (37. Bxe3 $2 {too greedy.} fxe3+ 38. Ke1 (38. Kxe3 Rxg2 39. Re1 Qe6+ 40. Kd3 Qxh3+ 41. Kc4 Rg3) 38... Qf2+ (38... Rxg2 39. Rxe3 a5 40. Qd3 $17) 39. Kd1 e2+ (39... Rxg2 40. Rxe3 a5 41. Rhe1 $15) (39... Qxg2 40. Qb3+ d5 41. Qxe3 $11) 40. Kc1 Rxg2 $19 (40... Qxg2 41. Rxh7 Qe4 42. Rh8+ Kf7 43. R8h7+ Kf6 44. R1h6+ Kg5 45. Rh5+ Kg6 46. R5h6+ Kg5 47. Rh5+ Kg6 48. R5h6+ Kg5 $11)) 37... d5 {[%emt 0:00:21]} 38. Ne1 {[%emt 0:01:33]} (38. Bxe3 {leads to mate.} fxe3+ 39. Kxe3 Qxd4+ (39... Rxg2 40. Kd3 Qf2 41. Qd1 Qb2 42. Ke3 Re8+ 43. Kf4 Re4+ 44. Kf5) 40. Kf3 Qe4+ 41. Kf2 Rxg2+ 42. Kf1 Qe2#) 38... Qxd4 {[%emt 0:01:52]} 39. Bxe3 {[%emt 0:02:08]} fxe3+ {[%emt 0:00:01]} 40. Rxe3 {[%emt 0:00:10] Hoping for Qc3.} (40. Qxe3 $2 {perishes.} Rf8+ 41. Nf3 Rg2+ 42. Kxg2 Qxe3 $19) 40... Qd2+ {[%emt 0:00:57]} 41. Re2 $1 {[%emt 0:00:32]} Rf8+ {[%emt 0:00:26]} 42. Nf3 {[%emt 0:00:03]} Qf4 {[%emt 0:00:37]} 43. Rh3 {[%emt 0:00:51] Prevents Qg3+. Qe3 is the strong threat.} Qc1 {[%emt 0:00:18]} (43... Rg6 $1 $11 44. Qd1 a5) 44. Rg3 $18 {[%emt 0:01:51]} Qf4 {[%emt 0:00:41]} (44... Rxg3 {was necessary.} 45. Kxg3 Qf4+ 46. Kg2 a5) 45. Rxg4+ {[%emt 0:00:13]} Qxg4 {[%emt 0:00:05]} 46. Qe3 {[%emt 0:00:41]} h5 {[%emt 0:00:56] [#]} 47. Re1 $1 {[%emt 0:00:43] And now Rg1 would win.} Qh4+ {[%emt 0:00:28]} 48. Ke2 {[%emt 0:00:04]} Qc4+ {[%emt 0:00:25]} 49. Kd1 {[%emt 0:00:10]} Rf4 $2 {[%emt 0:00:36]} (49... Qf4 $18) 50. Qe8+ {[%emt 0:00:19] Weighted Error Value: White=0.10 (very precise) /Black=0.30.  Loses game:     	---       	Black=1      Mistake:       	White=3     	Black=5      Inaccurate:     	White=4     	Black=3      OK:         	White=15    	Black=17     Best:        	White=6     	---        Strong:       	White=2     	Black=1} 1-0

[Event "SixDays Budapest GM-A 10-2024"]
[Site "Budapest"]
[Date "2024.10.03"]
[Round "6.4"]
[White "Krishnan, Ritvik"]
[Black "Mayank Chakraborty"]
[Result "0-1"]
[ECO "E94"]
[WhiteElo "2206"]
[BlackElo "2431"]
[Annotator "TA"]
[PlyCount "110"]
[EventDate "2024.09.24"]
[EventType "tourn"]
[EventCountry "HUN"]
[SourceTitle "playchess.com"]
[Source "ChessBase"]
[SourceQuality "1"]
[TimeControl "5400+30"]

{[%evp 37,110,-44,-40,-63,-56,-60,0,-31,0,-135,-61,-217,-230,-322,-229,-220,-142,-135,-29,-163,-174,-214,-97,-362,-374,-408,-403,-460,-468,-431,-165,-213,-181,-298,-158,-172,-164,-257,-277,-267,-242,-255,-256,-244,-216,-368,-367,-433,-446,-412,-412,-378,-302,-364,-294,-342,-272,-733,-704,-783,-783,-1404,-616,-531,0,-2261,-2052,-29985,-683,-635,-333,-635,-649,-816,-765]} 1. Nf3 {[%emt 0:00:03]} Nf6 {[%emt 0:00:07]} 2. c4 {[%emt 0:00:06]} g6 {[%emt 0:00:03]} 3. Nc3 {[%emt 0:00:15]} Bg7 {[%emt 0:00:12]} 4. e4 {[%emt 0:00:05]} d6 {[%emt 0:00:02]} 5. d4 {[%emt 0:00:04]} O-O {[%emt 0:00:06]} 6. Be2 {[%emt 0:00:02]} e5 {[%emt 0:00:10]} 7. O-O {[%emt 0:00:06]} Bg4 {[%emt 0:00:04]} 8. d5 {[%emt 0:00:08]} a5 {[%emt 0:00:01]} 9. Be3 {[%emt 0:00:43]} Na6 {[%emt 0:00:32]} 10. Nd2 {[%emt 0:04:47]} Bd7 {[%emt 0:00:32]} 11. Rb1 {[%emt 0:02:26]} h5 {[%emt 0:01:19]} 12. h3 {[%emt 0:04:19]} Qe8 {[%emt 0:03:01]} 13. b3 {[%emt 0:02:14]} Nh7 {[%emt 0:05:23]} 14. a3 {[%emt 0:15:09]} f5 {[%emt 0:17:57]} 15. exf5 {[%emt 0:17:12]} gxf5 {[%emt 0:00:42]} 16. Bxh5 {[%emt 0:01:13]} Qe7 {[%emt 0:00:05]} 17. f3 {[%emt 0:05:06]} Qh4 {[%emt 0:18:25]} 18. f4 {[%emt 0:03:28]} exf4 {[%emt 0:01:35]} 19. Bf2 {[%emt 0:01:55]} (19. Rxf4 Qe7 20. Nce4 b6 $11 (20... fxe4 $2 21. Rxe4 $19)) 19... Qg5 {[%emt 0:01:07]} 20. Rc1 {[%emt 0:02:11]} Nc5 {[%emt 0:04:56]} 21. Be2 {[%emt 0:05:52]} Rae8 {[%emt 0:04:25]} (21... Nf6 $15) 22. Nf3 {[%emt 0:00:54]} Qg6 {[%emt 0:04:16]} 23. Re1 {[%emt 0:06:54]} (23. Nb5 $1 $11 {remains equal.}) 23... Nf6 {[%emt 0:09:24]} (23... Ne4 $1 $17 24. Nb5 Nxf2 25. Kxf2 Re3 26. Nxc7 Bb2) 24. Bd4 $2 {[%emt 0:03:30]} (24. b4 $15 Nce4 25. Bd4) 24... Nfe4 $19 {[%emt 0:02:25]} 25. Bf1 {[%emt 0:03:09]} a4 {[%emt 0:04:57]} 26. Nxa4 {[%emt 0:02:08]} Bxa4 {[%emt 0:01:50]} 27. bxa4 {[%emt 0:00:06]} Ra8 {[%emt 0:04:20]} ({Black should play} 27... Bxd4+ $17 28. Nxd4 Ng5) 28. Bxg7 {[%emt 0:05:51]} (28. Bxc5 $11 {and White stays safe.} Nxc5 29. Rc2) 28... Kxg7 $19 {[%emt 0:01:22]} 29. Nd4 {[%emt 0:01:34] [#]} Rxa4 {[%emt 0:01:36]} (29... Rh8 $1 $19 {[%cal Rh8h3]} 30. g4 fxg3 (30... Rxa4 $2 31. Nxf5+ Kf7 32. Rxe4 $18)) 30. Nb5 $2 {[%emt 0:00:31][%mdl 8192]} (30. Ra1 $17) 30... c6 $19 {[%emt 0:01:05]} 31. dxc6 {[%emt 0:00:23]} bxc6 {[%emt 0:00:01]} 32. Nd4 {[%emt 0:01:05]} Rxa3 {[%emt 0:01:00]} 33. Nf3 {[%emt 0:02:24]} Qf6 $2 {[%emt 0:02:37]} (33... Rfa8 34. Qe2 Nd3 35. Qxd3 Rxd3 36. Bxd3 Qg3) 34. Rc2 {[%emt 0:00:46]} (34. Ra1 {was worth a try.} Qxa1 35. Qxa1+ Rxa1 36. Rxa1) 34... Rfa8 {[%emt 0:01:29]} 35. Qc1 {[%emt 0:01:15] [#]} (35. Qd4 $142) 35... Re3 {[%emt 0:02:14]} (35... Qg6 $1 $19 {[%mdl 512]} 36. Be2 (36. Kh1 Qg3) 36... Re3) 36. Rxe3 $17 {[%emt 0:03:51]} Ra1 $1 {[%emt 0:00:14]} (36... fxe3 37. Qxe3 Ra6 38. Rc1 $11) 37. Qxa1 {[%emt 0:00:15]} (37. Re1 {was called for.} Rxc1 38. Rexc1) 37... Qxa1 $19 {[%emt 0:00:02]} 38. Re1 {[%emt 0:00:09]} Qa7 {[%emt 0:00:16]} 39. Kh2 {[%emt 0:00:27]} Kf6 {[%emt 0:00:45]} 40. Rd1 {[%emt 0:01:02]} Qa4 {[%emt 0:00:56]} 41. Rdc1 $2 {[%emt 0:01:01]} (41. Rcc1) 41... Qb3 $19 {[%emt 0:00:48]} 42. Kg1 {[%emt 0:01:19]} Nd7 {[%emt 0:01:11]} (42... Qe3+ 43. Kh2 $17) 43. Kh2 {[%emt 0:01:22]} Ne5 {[%emt 0:00:39]} 44. Be2 {[%emt 0:00:24]} Ng3 {[%emt 0:01:40]} 45. Rc3 {[%emt 0:01:40]} Qb4 {[%emt 0:01:26]} 46. Ng1 {[%emt 0:00:48]} Qa5 {[%emt 0:01:26]} 47. R1c2 $2 {[%emt 0:00:47]} (47. R3c2) 47... Ne4 $19 {[%emt 0:00:36]} 48. Rb3 {[%emt 0:00:16]} Qe1 {[%emt 0:00:35]} 49. Kh1 {[%emt 0:02:05]} Ng3+ {[%emt 0:01:10]} (49... f3 $142 50. gxf3 Ng3+ 51. Kg2 Ng6) 50. Kh2 $19 {[%emt 0:00:01]} Ne4 {[%emt 0:00:06]} (50... f3 $142 51. Rxf3 Nxe2 (51... Nxf3+ $2 52. Nxf3 Qb1 53. Rd2 $19) 52. Rxe2 Nxf3+ 53. gxf3 Qc1) 51. Kh1 $1 $19 {[%emt 0:00:01]} f3 {[%emt 0:01:01]} 52. gxf3 {[%emt 0:01:15]} Qg3 {[%emt 0:00:47]} (52... Ng3+ $142 53. Kg2 Ng6 54. Bd3 Nf4+ 55. Kh2 Qd1 56. Rb8 Qxd3 (56... Nxd3 $2 57. Rg2 $19) 57. Ra2 Qxc4 58. Rf2 Ngh5 59. Rf8+ Kg5 60. Re8 Qd4 61. Ra2 Kh4 62. Rc8 c5 63. Rc7 d5 64. Rh7 Qe5 65. Rxh5+ Nxh5+ 66. Kg2 d4 67. f4 Nxf4+ (67... Qxf4 68. Nf3+ $11) 68. Kf1 Qe4 (68... Nxh3 $2 {is the wrong capture.} 69. Nf3+ Kg4 70. Nxe5+ Kg5 71. Ke2 $18) 69. Rh2 Kg3 70. Rb2 d3 (70... Nxh3 71. Nxh3 c4 72. Rb8 Qf3+ 73. Ke1 Qc3+ 74. Kd1 d3 75. Rg8+ Kh2 76. Nf4 Qc2+ 77. Ke1 d2+ 78. Kf2 d1=Q+ 79. Ke3 Qcd2#) (70... c4 {is a self mate.} 71. h4 c3 72. Re2 Qd3 73. h5 c2 74. Nf3 Qxe2+ 75. Kg1 Qg2#) 71. Rf2 d2 (71... Nxh3 72. Rf3+ Kg4 73. Rxd3 Qxd3+ 74. Ke1 Nxg1 75. Kf2 Nf3 76. Kg2 Qe2+ 77. Kh1 Qh2#) 72. Rf3+ Qxf3+ 73. Nxf3 d1=Q+ (73... d1=B $2 74. Nd2 $19) 74. Ne1 Qe2+ 75. Kg1 Qxe1#) 53. Bf1 {[%emt 0:01:15]} Nf2+ {[%emt 0:00:17]} 54. Rxf2 {[%emt 0:00:01]} Qxf2 {[%emt 0:00:02]} 55. Bg2 {[%emt 0:00:31]} Nxc4 {[%emt 0:00:06]} 0-1